bitfinex/quotes_BTCUSD_20250910
["timestamp","ask_amount","ask_price","bid_price","bid_amount"]
[1757509247541,1.25684458,113530.0,113520.0,1e-08]
[1757509247714,1.30480458,113530.0,113520.0,1e-08]
[1757509247919,1.30480458,113530.0,113520.0,0.00100001]
[1757509248088,1.37400467,113530.0,113520.0,0.00100001]
[1757509248519,1.37396467,113530.0,113520.0,0.00100001]
[1757509248854,1.57543002,113530.0,113520.0,0.00100001]
[1757509249063,1.12249932,113530.0,113520.0,0.00100001]
[1757509249286,1.57543002,113530.0,113520.0,1e-08]
[1757509249457,1.57543002,113530.0,113500.0,0.0001]
[1757509249458,0.5413225,113510.0,113500.0,0.0001]
[1757509249652,1.05652918,113510.0,113500.0,0.0001]
[1757509249860,1.07125384,113510.0,113500.0,0.0001]
[1757509250297,1.07135384,113510.0,113500.0,0.0001]
[1757509250636,0.89086726,113510.0,113500.0,0.0001]
[1757509250842,0.18366523,113510.0,113500.0,0.0001]
[1757509251043,0.38513058,113510.0,113500.0,0.0001]
[1757509251258,0.54245058,113510.0,113500.0,0.0011]
[1757509251450,0.61841058,113510.0,113500.0,0.0011]
[1757509251685,0.65834025,113510.0,113500.0,0.0011]
[1757509251866,0.61841058,113510.0,113500.0,0.0011]
[1757509252301,0.71024657,113510.0,113500.0,0.0011]
[1757509252711,1.07537315,113510.0,113500.0,0.0011]
[1757509252918,1.12537315,113510.0,113500.0,0.0011]
[1757509253126,0.97313315,113510.0,113500.0,0.0011]
[1757509253335,1.12833315,113510.0,113500.0,0.0011]
[1757509253547,1.12833315,113510.0,113500.0,1e-08]
[1757509254214,1.17833315,113510.0,113500.0,1e-08]
[1757509255030,1.02313315,113510.0,113500.0,1e-08]
[1757509255263,0.7716678,113510.0,113500.0,1e-08]
[1757509255496,1.07825315,113510.0,113500.0,1e-08]
[1757509255704,0.97313315,113510.0,113500.0,1e-08]
[1757509255913,0.89800657,113510.0,113500.0,1e-08]
[1757509256125,0.85166122,113510.0,113500.0,1e-08]
[1757509256351,0.89800657,113510.0,113500.0,1e-08]
[1757509256559,1.05512657,113510.0,113500.0,0.00100001]
[1757509256773,0.92549031,113510.0,113500.0,0.00100001]
[1757509256979,0.17624253,113480.0,113460.0,0.07271595]
[1757509257186,0.17946253,113480.0,113470.0,0.09191599]
[1757509257393,0.33655253,113480.0,113470.0,0.09191599]
[1757509257573,0.18157253,113480.0,113470.0,0.09191599]
[1757509257847,0.33665253,113480.0,113470.0,0.09191599]
[1757509258064,0.33665253,113480.0,113450.0,0.3401]
[1757509258065,0.17627357,113460.0,113450.0,0.3401]
[1757509258269,0.53800892,113460.0,113450.0,0.09201599]
[1757509258482,0.33654357,113460.0,113450.0,0.09201599]
[1757509258685,0.33664357,113460.0,113450.0,0.09201599]
[1757509258929,0.60578892,113460.0,113450.0,0.0001]
[1757509259363,0.60592813,113460.0,113450.0,0.0001]
[1757509259568,0.76277421,113460.0,113450.0,0.0001]
[1757509259783,0.76259421,113460.0,113450.0,0.0001]
[1757509259980,0.24932278,113460.0,113450.0,0.0001]
[1757509260189,0.40448278,113460.0,113450.0,0.0001]
[1757509260410,0.24932278,113460.0,113450.0,0.0001]
[1757509260633,0.60758813,113460.0,113450.0,0.0041]
[1757509260844,0.17632019,113430.0,113420.0,0.4]
[1757509261054,0.33726019,113430.0,113420.0,0.49191599]
[1757509261258,0.18146019,113430.0,113420.0,0.49191599]
[1757509261479,0.17631838,113440.0,113420.0,0.49191599]
[1757509261692,0.33216019,113430.0,113420.0,0.49191599]
[1757509261916,0.1558,113430.0,113420.0,0.69533134]
[1757509262131,0.17630465,113440.0,113420.0,0.69533134]
[1757509262355,0.1558,113430.0,113420.0,0.69533134]
[1757509262573,0.15586,113430.0,113420.0,0.62504927]
[1757509262825,0.0001,113430.0,113420.0,1.22943501]
[1757509263269,0.0001,113430.0,113420.0,1.45342487]
[1757509263491,0.0011,113430.0,113420.0,1.45942487]
[1757509263702,0.0011,113430.0,113420.0,1.32824159]
[1757509263915,0.0011,113430.0,113420.0,1.45342487]
[1757509263916,0.0001,113430.0,113420.0,1.45342487]
[1757509264344,0.0011,113430.0,113420.0,1.46042487]
[1757509264760,0.0001,113430.0,113420.0,1.45342487]
[1757509265178,0.0021,113430.0,113420.0,1.51142487]
[1757509265404,0.0021,113430.0,113420.0,1.11142487]
[1757509265796,0.00023921,113460.0,113450.0,0.55]
[1757509266015,0.00023921,113460.0,113450.0,1.66921824]
[1757509266279,0.00023921,113460.0,113450.0,1.67116824]
[1757509266531,0.00023921,113460.0,113450.0,1.75921824]
[1757509266985,0.00023921,113460.0,113450.0,1.40337824]
[1757509267203,0.00223921,113460.0,113450.0,1.56913824]
[1757509267451,0.00223921,113460.0,113450.0,1.96913824]
[1757509267873,0.00223921,113460.0,113450.0,1.97413824]
[1757509268086,0.00023921,113460.0,113450.0,2.01413824]
[1757509268298,0.00023921,113460.0,113450.0,2.05520963]
[1757509268504,0.00123921,113460.0,113450.0,1.92945989]
[1757509268713,0.00123921,113460.0,113450.0,1.71637824]
[1757509268925,0.00123921,113460.0,113450.0,1.87205824]
[1757509269174,0.00123921,113460.0,113450.0,1.71637824]
[1757509269389,0.00123921,113460.0,113450.0,2.17769989]
[1757509269598,0.00123921,113460.0,113450.0,2.00581669]
[1757509269806,0.00123921,113460.0,113450.0,2.26818325]
[1757509270011,0.00023921,113460.0,113450.0,2.10354325]
[1757509270219,0.00023921,113460.0,113450.0,2.20901824]
[1757509270426,1e-08,113460.0,113450.0,2.45852317]
[1757509270636,1e-08,113460.0,113450.0,2.71252317]
[1757509270840,0.00033659,113500.0,113490.0,0.51622698]
[1757509271050,0.00038292,113500.0,113490.0,1.11891611]
[1757509271256,0.00014633,113500.0,113490.0,1.34009939]
[1757509271462,0.00014633,113500.0,113490.0,1.18449939]
[1757509271668,0.00014633,113500.0,113490.0,1.20891611]
[1757509272690,0.00014633,113500.0,113490.0,1.34009939]
[1757509272934,0.00014633,113500.0,113490.0,1.8362799]
[1757509273136,0.00014633,113500.0,113490.0,1.7862799]
[1757509273340,0.00014633,113500.0,113490.0,1.39009939]
[1757509273543,1e-08,113500.0,113490.0,1.44009939]
[1757509273751,1e-08,113500.0,113490.0,1.90134104]
[1757509273954,1e-08,113500.0,113490.0,1.90234104]
[1757509274188,0.00010001,113500.0,113490.0,1.69582104]
[1757509274391,0.00010001,113500.0,113490.0,2.10542104]
[1757509274612,0.00110001,113500.0,113490.0,2.11142104]
[1757509274799,0.00110001,113500.0,113490.0,2.10142104]
[1757509275004,0.00010001,113500.0,113490.0,2.10142104]
[1757509275210,0.00110001,113500.0,113490.0,2.00305939]
[1757509275431,0.00110001,113500.0,113490.0,1.93311776]
[1757509275632,0.00110001,113500.0,113490.0,1.52763776]
[1757509275831,0.00110001,113500.0,113490.0,1.82175611]
[1757509276009,0.00110001,113500.0,113490.0,1.86800689]
[1757509276235,0.00110001,113500.0,113490.0,1.71260689]
[1757509276375,0.00110001,113500.0,113490.0,1.66131611]
[1757509276580,0.00110001,113500.0,113490.0,1.94785939]
[1757509276779,0.00010001,113500.0,113490.0,1.78849939]
[1757509276985,0.00010001,113500.0,113490.0,2.25514104]
[1757509277196,0.00010001,113500.0,113490.0,2.10282104]
[1757509277411,0.00010001,113500.0,113490.0,2.25118104]
[1757509277816,0.00010001,113500.0,113490.0,2.09882104]
[1757509278041,0.00010001,113500.0,113490.0,2.25414104]
[1757509278241,0.00010001,113500.0,113490.0,2.30114104]
[1757509278453,1e-08,113500.0,113490.0,2.30114104]
[1757509278654,1e-08,113500.0,113490.0,2.80406104]
[1757509278856,1e-08,113500.0,113490.0,2.64882104]
[1757509279073,1e-08,113500.0,113490.0,2.80402104]
[1757509279456,1e-08,113500.0,113490.0,2.46763776]
[1757509279681,1e-08,113500.0,113490.0,1.9592712]
[1757509280024,1e-08,113500.0,113490.0,2.35175118]
[1757509280469,1e-08,113500.0,113490.0,1.59114462]
[1757509280681,1e-08,113500.0,113490.0,1.24177297]
[1757509280887,1e-08,113500.0,113490.0,1.57463866]
[1757509281092,1e-08,113500.0,113490.0,1.70582194]
[1757509281294,0.00100001,113500.0,113490.0,1.41535866]
[1757509281508,0.00309001,113500.0,113490.0,1.1059984]
[1757509281743,0.00514001,113500.0,113490.0,1.91296866]
[1757509281956,0.00914001,113500.0,113490.0,1.91296866]
[1757509282166,0.00400001,113500.0,113490.0,1.57091866]
[1757509282372,0.00400001,113500.0,113490.0,1.81527852]
[1757509282581,0.00400001,113500.0,113490.0,2.35527852]
[1757509282792,0.00400001,113500.0,113490.0,2.20071852]
[1757509282997,0.00400001,113500.0,113490.0,2.35627852]
[1757509283210,0.00400001,113500.0,113490.0,2.35527852]
[1757509283424,1e-08,113500.0,113490.0,2.30887611]
[1757509283636,1e-08,113500.0,113490.0,2.10138104]
[1757509283841,1e-08,113500.0,113490.0,2.50138104]
[1757509284048,1e-08,113500.0,113490.0,2.90138104]
[1757509284282,0.00300001,113500.0,113490.0,2.90138104]
[1757509284497,0.00300001,113500.0,113490.0,2.84005939]
[1757509284705,1e-08,113500.0,113490.0,3.00634924]
[1757509284891,0.07061254,113550.0,113540.0,0.17614937]
[1757509285142,0.00023899,113550.0,113540.0,1.2087185]
[1757509285349,0.00023899,113550.0,113540.0,1.34635194]
[1757509285570,0.00023899,113550.0,113540.0,2.1587185]
[1757509285780,0.00023899,113550.0,113540.0,2.20513909]
[1757509286422,0.00023899,113550.0,113540.0,1.80513909]
[1757509286843,0.00023899,113550.0,113540.0,2.20513909]
[1757509287260,0.00423899,113550.0,113540.0,2.0586188]
[1757509287481,0.00423899,113550.0,113540.0,1.95169224]
[1757509287698,0.00023899,113550.0,113540.0,2.2140588]
[1757509288172,0.00023899,113550.0,113540.0,2.2170588]
[1757509291110,1e-08,113550.0,113540.0,2.44824208]
[1757509291741,1e-08,113550.0,113540.0,2.40182149]
[1757509291964,1e-08,113550.0,113540.0,2.46371561]
[1757509292170,1e-08,113550.0,113540.0,2.07016577]
[1757509293064,0.0501,113600.0,113590.0,1.20356497]
[1757509293314,0.05023897,113600.0,113590.0,1.72988096]
[1757509293535,0.07051254,113620.0,113610.0,0.91604084]
[1757509293716,0.07051254,113640.0,113630.0,0.51600985]
[1757509293967,0.01652635,113640.0,113630.0,1.3891857]
[1757509294200,0.00013892,113640.0,113630.0,1.17876242]
[1757509294429,0.00013892,113640.0,113630.0,1.4652657]
[1757509294665,0.00013892,113640.0,113630.0,1.47748437]
[1757509295086,0.00013892,113640.0,113630.0,1.47744437]
[1757509295535,0.00213892,113640.0,113630.0,1.32216437]
[1757509295950,0.00213892,113640.0,113630.0,1.47740437]
[1757509296587,0.00213892,113640.0,113630.0,0.91896437]
[1757509296797,0.00213892,113640.0,113630.0,1.07408437]
[1757509297423,0.00213892,113640.0,113630.0,1.34290109]
[1757509297623,0.00213892,113640.0,113630.0,1.39796437]
[1757509297836,0.00213892,113640.0,113630.0,1.39788437]
[1757509298464,0.00213892,113640.0,113630.0,1.4593028]
[1757509298882,0.00213892,113640.0,113630.0,1.27913622]
[1757509299104,0.00720892,113640.0,113630.0,0.96097442]
[1757509299310,0.00213892,113640.0,113630.0,1.42312755]
[1757509299543,0.00213892,113640.0,113630.0,1.40967085]
[1757509299744,0.00163892,113640.0,113630.0,1.35780757]
[1757509299971,0.00163892,113640.0,113630.0,1.48899085]
[1757509300348,0.00163892,113640.0,113630.0,1.48894778]
[1757509300980,0.00163892,113640.0,113630.0,1.33398778]
[1757509301220,0.00163892,113640.0,113630.0,1.48570778]
[1757509301598,0.00163892,113640.0,113630.0,1.41832301]
[1757509301799,0.00163892,113640.0,113630.0,1.13221973]
[1757509302028,0.00163892,113640.0,113630.0,0.89955599]
[1757509302029,0.18270328,113640.0,113630.0,0.89955599]
[1757509302234,0.31388656,113640.0,113630.0,0.49191599]
[1757509302437,0.18270328,113640.0,113630.0,0.64667599]
[1757509302613,0.18270328,113640.0,113630.0,0.4]
[1757509302614,0.31388656,113640.0,113630.0,0.4]
[1757509302823,0.18270328,113640.0,113630.0,0.4]
[1757509303025,0.18270328,113640.0,113630.0,0.55476]
[1757509303658,0.18570328,113640.0,113630.0,0.55476]
[1757509303868,0.18406436,113640.0,113630.0,0.55476]
[1757509304082,0.18806436,113640.0,113630.0,0.55476]
[1757509304507,0.007,113640.0,113630.0,0.82268584]
[1757509304733,0.007,113640.0,113630.0,1.29581912]
[1757509305093,0.18806436,113640.0,113630.0,0.98651599]
[1757509305292,0.18506436,113640.0,113630.0,0.83191599]
[1757509305496,0.31224764,113640.0,113630.0,0.4]
[1757509305744,0.31424764,113640.0,113630.0,0.5546]
[1757509305885,0.18606436,113640.0,113630.0,0.4]
[1757509306093,0.18606436,113640.0,113610.0,0.04596866]
[1757509306094,0.17602534,113620.0,113610.0,0.04596866]
[1757509306295,0.17602534,113620.0,113600.0,0.04596866]
[1757509306296,0.17604084,113610.0,113600.0,0.04596866]
[1757509306505,0.18111084,113610.0,113600.0,0.09191599]
[1757509306766,0.18111084,113610.0,113600.0,0.49191599]
[1757509307101,0.33372534,113610.0,113600.0,0.4]
[1757509307523,0.00293,113630.0,113600.0,0.49386599]
[1757509307724,0.00293,113630.0,113610.0,0.39905049]
[1757509307930,0.17895534,113620.0,113610.0,0.24643599]
[1757509308125,0.17895534,113620.0,113610.0,0.09191599]
[1757509308126,0.33370984,113620.0,113610.0,0.09191599]
[1757509308795,0.17804084,113610.0,113600.0,0.94048866]
[1757509309015,0.18311084,113610.0,113600.0,0.98643599]
[1757509309206,0.18311084,113610.0,113600.0,1.03240465]
[1757509311840,0.48809183,113580.0,113570.0,0.44643383]
[1757509312245,0.18115733,113580.0,113570.0,0.04643383]
[1757509312460,0.00214,113580.0,113570.0,0.46073409]
[1757509312645,0.00214,113580.0,113570.0,0.30811959]
[1757509312646,0.18115733,113580.0,113570.0,0.30811959]
[1757509312874,0.18115733,113580.0,113570.0,0.55379959]
[1757509313079,0.33377183,113580.0,113570.0,0.40046517]
[1757509313289,0.49109183,113580.0,113570.0,0.40046517]
[1757509313491,0.49109183,113580.0,113570.0,0.4618836]
[1757509313691,0.48809183,113580.0,113570.0,0.40046517]
[1757509314301,0.49209183,113580.0,113570.0,0.00046517]
[1757509314511,0.33547733,113580.0,113570.0,0.00046517]
[1757509314684,0.56903183,113580.0,113570.0,0.00046517]
[1757509314901,0.57203183,113580.0,113570.0,0.00046517]
[1757509315111,0.26409733,113580.0,113570.0,0.00046517]
[1757509315315,0.41671183,113580.0,113570.0,0.00046517]
[1757509315519,0.62413537,113580.0,113570.0,0.00046517]
[1757509315724,0.77474987,113580.0,113570.0,0.00046517]
[1757509315939,0.86344232,113580.0,113570.0,0.00046517]
[1757509316149,0.86644232,113580.0,113570.0,0.00046517]
[1757509316610,0.17614937,113540.0,113530.0,0.19971081]
[1757509316752,0.17614937,113540.0,113530.0,0.1374268]
[1757509316961,0.17614937,113540.0,113530.0,0.29224336]
[1757509317223,0.18121937,113540.0,113530.0,0.1374268]
[1757509317389,0.33541937,113540.0,113530.0,0.09191599]
[1757509317564,0.17616489,113530.0,113520.0,0.1526145]
[1757509317764,0.33953922,113540.0,113520.0,0.42486283]
[1757509317974,0.00046239,113540.0,113530.0,0.24453049]
[1757509318170,0.00246239,113540.0,113530.0,0.24453049]
[1757509318403,0.18075176,113540.0,113530.0,0.09191599]
[1757509318604,0.18168176,113540.0,113530.0,0.09191599]
[1757509318834,0.00260239,113540.0,113530.0,0.24673255]
[1757509319043,0.00046239,113540.0,113530.0,0.49818538]
[1757509319217,0.17616489,113530.0,113520.0,0.06141843]
[1757509319447,0.18130489,113530.0,113520.0,0.09191599]
[1757509319728,0.18741922,113540.0,113520.0,0.24673274]
[1757509319890,0.18741922,113540.0,113530.0,0.24453049]
[1757509320058,0.19255922,113540.0,113530.0,0.09191599]
[1757509320462,0.19255922,113540.0,113530.0,0.4]
[1757509320463,0.34475922,113540.0,113530.0,0.4]
[1757509320681,0.34471922,113540.0,113530.0,0.4]
[1757509321088,0.19255922,113540.0,113530.0,0.4001]
[1757509321302,0.34467922,113540.0,113530.0,0.4001]
[1757509321733,0.34667922,113540.0,113530.0,0.4001]
[1757509321945,0.19055922,113540.0,113530.0,0.49201599]
[1757509322167,0.19055922,113540.0,113530.0,1.04463049]
[1757509322391,0.18176176,113540.0,113530.0,1.04463049]
[1757509322606,0.17961176,113540.0,113530.0,1.04663049]
[1757509323056,0.18161176,113540.0,113530.0,1.04663049]
[1757509324163,0.17661176,113540.0,113530.0,1.04663049]
[1757509324379,0.17661176,113540.0,113530.0,1.12976578]
[1757509324595,0.42150155,113540.0,113530.0,0.89201599]
[1757509324859,0.42150155,113540.0,113530.0,0.8001]
[1757509325521,0.42150155,113540.0,113530.0,0.4001]
[1757509325738,0.42250155,113540.0,113530.0,0.4001]
[1757509326250,0.42150155,113540.0,113530.0,0.4001]
[1757509326487,0.57554155,113540.0,113530.0,0.4001]
[1757509326706,0.18575176,113540.0,113530.0,0.4001]
[1757509326935,0.33975176,113540.0,113530.0,0.49201599]
[1757509327160,0.00461239,113540.0,113530.0,0.72976578]
[1757509327374,0.00246239,113540.0,113530.0,0.90793067]
[1757509327599,0.00246239,113540.0,113530.0,1.06193067]
[1757509327854,0.00446239,113540.0,113530.0,1.06193067]
[1757509328119,0.18575176,113540.0,113530.0,0.49201599]
[1757509328351,0.42350155,113540.0,113530.0,0.49201599]
[1757509328570,0.18575176,113540.0,113530.0,0.4001]
[1757509328787,0.42150155,113540.0,113530.0,0.4001]
[1757509329004,0.49205155,113540.0,113530.0,0.4001]
[1757509329431,0.49405155,113540.0,113530.0,0.4001]
[1757509330157,0.49205155,113540.0,113530.0,0.4001]
[1757509330373,0.58396754,113540.0,113530.0,0.4001]
[1757509330587,0.58796754,113540.0,113530.0,0.4001]
[1757509331026,0.58996754,113540.0,113530.0,0.4001]
[1757509331250,0.8262985,113540.0,113530.0,0.4001]
[1757509331463,1.23942508,113540.0,113530.0,0.0001]
[1757509331715,1.28942508,113540.0,113530.0,0.0001]
[1757509331939,1.36285434,113540.0,113520.0,1e-08]
[1757509332156,0.1761804,113520.0,113510.0,1e-08]
[1757509332382,0.17619592,113510.0,113500.0,1e-08]
[1757509332622,0.49163571,113510.0,113500.0,1e-08]
[1757509333030,0.5835517,113510.0,113500.0,1e-08]
[1757509333244,0.99867828,113510.0,113500.0,1e-08]
[1757509333684,1.04867828,113510.0,113500.0,1e-08]
[1757509333939,1.14059427,113510.0,113500.0,1e-08]
[1757509334148,0.25133803,113500.0,113490.0,0.08152524]
[1757509334377,1.04163381,113500.0,113490.0,1e-08]
[1757509334637,0.17627357,113460.0,113450.0,0.0001]
[1757509334853,0.63538336,113460.0,113450.0,0.0001]
[1757509335072,0.40277357,113460.0,113450.0,0.0001]
[1757509335307,0.00514,113460.0,113450.0,0.09201599]
[1757509335521,0.17627357,113460.0,113450.0,0.09215491]
[1757509335753,0.57284336,113460.0,113450.0,0.00023892]
[1757509335992,0.25396357,113460.0,113450.0,0.00023892]
[1757509336204,0.18141357,113460.0,113450.0,0.00023892]
[1757509336409,0.33509357,113460.0,113450.0,0.00023892]
[1757509336615,0.33609357,113460.0,113450.0,0.05050837]
[1757509336810,0.17942357,113460.0,113450.0,0.14242436]
[1757509336953,0.33709357,113460.0,113450.0,0.09615491]
[1757509337358,0.33709357,113460.0,113450.0,0.00423892]
[1757509337559,0.00614,113460.0,113450.0,0.09615491]
[1757509337851,0.001,113460.0,113450.0,0.66395381]
[1757509338052,0.003,113460.0,113450.0,0.72737224]
[1757509338206,0.003,113460.0,113450.0,0.55108313]
[1757509338412,0.003,113460.0,113450.0,0.72737224]
[1757509338612,0.003,113460.0,113450.0,0.39532313]
[1757509338814,0.003,113460.0,113450.0,1.10963039]
[1757509339177,0.003,113460.0,113450.0,1.18631604]
[1757509339393,0.002,113460.0,113450.0,1.77283039]
[1757509339576,0.309365,113500.0,113480.0,0.17623583]
[1757509339864,0.309365,113500.0,113480.0,0.42416152]
[1757509340063,0.17837698,113490.0,113480.0,0.09191599]
[1757509340272,0.18136698,113490.0,113480.0,0.49191599]
[1757509340685,0.18136698,113490.0,113480.0,0.49201599]
[1757509341763,0.18136698,113490.0,113480.0,0.89201599]
[1757509342390,0.18136698,113490.0,113480.0,0.8001]
[1757509342589,0.18536698,113490.0,113480.0,0.8001]
[1757509343612,0.49566677,113490.0,113480.0,0.8001]
[1757509343764,0.57823095,113490.0,113480.0,0.4001]
[1757509343962,0.34048116,113490.0,113480.0,0.0001]
[1757509344165,0.49866677,113490.0,113480.0,0.0001]
[1757509344369,0.56351669,113490.0,113480.0,0.0001]
[1757509345951,0.18836698,113490.0,113480.0,0.0001]
[1757509346173,0.34184698,113490.0,113480.0,0.23784979]
[1757509346382,0.01214,113490.0,113480.0,0.50600828]
[1757509346584,0.007,113490.0,113480.0,0.55233582]
[1757509346789,0.007,113490.0,113480.0,0.95233582]
[1757509347252,0.007,113490.0,113480.0,0.95433582]
[1757509347473,0.18322698,113490.0,113480.0,0.77809332]
[1757509347677,0.007,113490.0,113480.0,0.95433582]
[1757509347888,0.007,113490.0,113480.0,1.02987582]
[1757509348087,0.007,113490.0,113480.0,0.98354828]
[1757509348541,0.007,113490.0,113480.0,1.04527186]
[1757509348750,0.007,113490.0,113480.0,0.98354828]
[1757509348963,0.007,113490.0,113480.0,1.13690828]
[1757509349212,0.007,113490.0,113480.0,1.48000828]
[1757509349427,0.007,113490.0,113480.0,1.54173186]
[1757509349632,0.007,113490.0,113480.0,1.94173186]
[1757509349821,0.007,113490.0,113480.0,1.96685844]
[1757509350229,0.007,113490.0,113480.0,2.37233486]
[1757509350477,0.007,113490.0,113480.0,2.04902051]
[1757509350906,0.07051254,113530.0,113520.0,0.1761804]
[1757509351113,0.07051254,113530.0,113520.0,0.27245864]
[1757509351332,0.07051254,113530.0,113520.0,0.66124618]
[1757509351539,0.2466464,113550.0,113530.0,0.17615136]
[1757509351774,0.2496564,113550.0,113540.0,0.48298578]
[1757509351991,0.2496564,113550.0,113540.0,0.26806536]
[1757509351992,0.2516164,113550.0,113540.0,0.26806536]
[1757509352200,0.00242239,113550.0,113540.0,0.26806536]
[1757509352618,0.00242239,113550.0,113540.0,0.90581515]
[1757509352829,0.00046239,113550.0,113540.0,0.90581515]
[1757509353284,0.00446239,113550.0,113540.0,0.90581515]
[1757509353495,0.00446239,113550.0,113540.0,1.05905515]
[1757509354842,0.18059625,113550.0,113540.0,0.88278578]
[1757509355052,0.18259625,113550.0,113540.0,1.05893515]
[1757509355257,0.18269625,113550.0,113540.0,1.05893515]
[1757509355596,0.18269625,113550.0,113540.0,0.88278578]
[1757509355799,0.18465625,113550.0,113540.0,0.72966578]
[1757509356024,0.18465625,113550.0,113540.0,0.64495599]
[1757509356224,0.18766625,113550.0,113540.0,0.64495599]
[1757509356451,0.18766625,113550.0,113540.0,0.49191599]
[1757509356921,0.57841604,113550.0,113540.0,0.4]
[1757509358378,0.17614937,113540.0,113530.0,0.153]
[1757509358585,0.18766625,113550.0,113530.0,0.42107964]
[1757509358997,0.18766625,113550.0,113530.0,0.65882943]
[1757509359544,0.18166625,113550.0,113530.0,1.05882943]
[1757509359929,0.002,113540.0,113530.0,0.96691344]
[1757509360136,0.17814937,113540.0,113530.0,1.04331468]
[1757509360340,0.002,113540.0,113530.0,1.04331468]
[1757509360511,0.17769654,113550.0,113540.0,0.17614937]
[1757509360746,0.00156239,113550.0,113540.0,0.17614937]
[1757509360953,0.17769625,113550.0,113530.0,1.04115468]
[1757509361529,0.17669625,113550.0,113540.0,0.17614937]
[1757509361725,0.00056239,113550.0,113540.0,0.50797515]
[1757509361927,0.17669625,113550.0,113540.0,0.50797515]
[1757509362168,0.00056239,113550.0,113540.0,0.50797515]
[1757509362390,0.00256239,113550.0,113540.0,0.50797515]
[1757509362565,0.17869625,113550.0,113540.0,0.50797515]
[1757509362960,0.17865625,113550.0,113540.0,0.32966578]
[1757509363164,0.17769625,113550.0,113540.0,0.50581515]
[1757509363386,0.17669625,113550.0,113540.0,0.50797515]
[1757509363585,0.00056239,113550.0,113540.0,0.50797515]
[1757509363823,0.00356239,113550.0,113540.0,0.50797515]
[1757509365014,0.00556239,113550.0,113540.0,0.67022536]
[1757509365218,0.00556239,113550.0,113540.0,0.90797515]
[1757509366674,0.00556239,113550.0,113540.0,1.32221515]
[1757509366949,0.00556239,113550.0,113540.0,1.39295515]
[1757509368586,0.00356239,113550.0,113540.0,1.39295515]
[1757509368985,0.00356239,113550.0,113540.0,1.39495515]
[1757509369224,0.00056239,113550.0,113540.0,1.39295515]
[1757509369430,0.00056239,113550.0,113540.0,1.41808173]
[1757509369611,0.00056239,113550.0,113540.0,1.42108173]
[1757509370439,0.00056239,113550.0,113540.0,1.57348173]
[1757509370669,0.00056239,113550.0,113540.0,1.18333194]
[1757509370879,0.00056239,113550.0,113540.0,1.57448173]
[1757509371623,0.00056239,113550.0,113540.0,1.57444173]
[1757509371816,0.00056239,113550.0,113540.0,1.54621515]
[1757509372033,0.00056239,113550.0,113540.0,1.15610536]
[1757509372269,0.00252239,113550.0,113540.0,1.23206536]
[1757509372475,0.17865625,113550.0,113540.0,1.07970536]
[1757509372702,0.00252239,113550.0,113540.0,1.23202536]
[1757509372879,0.00056239,113550.0,113540.0,1.47193515]
[1757509373674,0.00056239,113550.0,113540.0,1.31961515]
[1757509373891,0.17865625,113550.0,113540.0,0.90355599]
[1757509374107,0.18166625,113550.0,113540.0,0.64831599]
[1757509374725,0.18166625,113550.0,113540.0,0.98831599]
[1757509374959,0.18166625,113550.0,113540.0,0.49591599]
[1757509375160,0.18166625,113550.0,113540.0,0.401]
[1757509375161,0.46681233,113550.0,113540.0,0.401]
[1757509375368,0.46681233,113550.0,113540.0,0.001]
[1757509375369,0.69573233,113550.0,113540.0,0.001]
[1757509375570,0.69573233,113550.0,113540.0,0.004]
[1757509375867,0.64833604,113550.0,113540.0,0.004]
[1757509376067,0.64833604,113550.0,113540.0,0.001]
[1757509376068,0.18166625,113550.0,113540.0,0.001]
[1757509376275,0.18166625,113550.0,113540.0,0.002]
[1757509376480,0.00252239,113550.0,113540.0,0.50781515]
[1757509376625,0.00252239,113550.0,113540.0,0.66806536]
[1757509376828,0.00156239,113550.0,113540.0,0.66033515]
[1757509377050,0.00156239,113550.0,113540.0,0.66133515]
[1757509377282,0.00156239,113550.0,113540.0,1.06133515]
[1757509377591,0.00156239,113550.0,113540.0,1.13767515]
[1757509377723,0.00156239,113550.0,113540.0,1.47767515]
[1757509377928,0.00356239,113550.0,113540.0,1.47767515]
[1757509378342,0.00356239,113550.0,113540.0,1.52408985]
[1757509378343,0.00256239,113550.0,113540.0,1.52408985]
[1757509378541,0.00256239,113550.0,113540.0,1.52416985]
[1757509378744,0.00256239,113550.0,113540.0,1.55029643]
[1757509379245,0.00256239,113550.0,113540.0,1.54929643]
[1757509379473,0.00256239,113550.0,113540.0,1.55129643]
[1757509379681,0.00056239,113550.0,113540.0,1.55129643]
[1757509380372,0.00056239,113550.0,113540.0,1.76676799]
[1757509380520,0.00056239,113550.0,113540.0,1.96676799]
[1757509381115,0.00056239,113550.0,113540.0,1.96664799]
[1757509381791,0.00056239,113550.0,113540.0,1.8437782]
[1757509381955,0.00056239,113550.0,113540.0,2.23388799]
[1757509382158,0.00056239,113550.0,113540.0,2.07952799]
[1757509382357,0.00056239,113550.0,113540.0,1.83188799]
[1757509382563,0.00056239,113550.0,113540.0,1.85249799]
[1757509382768,0.00056239,113550.0,113540.0,2.19061173]
[1757509382975,0.0001,113560.0,113550.0,0.55887044]
[1757509383166,0.0001,113560.0,113550.0,1.38729514]
[1757509383457,0.0001,113560.0,113550.0,1.45159563]
[1757509383931,0.0001,113560.0,113550.0,1.85159563]
[1757509384180,0.0001,113560.0,113550.0,2.00159563]
[1757509384381,0.0001,113560.0,113550.0,2.20395865]
[1757509384798,0.0001,113560.0,113550.0,2.20595865]
[1757509386061,0.07051254,113590.0,113580.0,0.17608733]
[1757509386267,0.07051254,113590.0,113580.0,1.06450295]
[1757509386449,0.07061254,113590.0,113580.0,1.16648844]
[1757509386653,0.0001,113590.0,113580.0,1.16648844]
[1757509386862,0.0001,113590.0,113580.0,1.56644844]
[1757509387027,0.0001,113590.0,113580.0,1.90644844]
[1757509387272,0.0001,113590.0,113580.0,1.48704844]
[1757509387469,0.0001,113590.0,113580.0,1.75424844]
[1757509387655,0.0001,113590.0,113580.0,1.90644844]
[1757509388052,0.0001,113590.0,113580.0,1.75424844]
[1757509388259,0.0001,113590.0,113580.0,1.90644844]
[1757509388801,0.0001,113590.0,113580.0,1.90744844]
[1757509389758,0.0001,113590.0,113580.0,1.75487417]
[1757509390389,0.00524,113590.0,113580.0,0.90055599]
[1757509390607,0.18131183,113590.0,113580.0,0.90055599]
[1757509390790,0.00524,113590.0,113580.0,1.2377835]
[1757509391004,0.00524,113590.0,113580.0,1.06169617]
[1757509391205,0.18131183,113590.0,113580.0,0.90949617]
[1757509391388,0.00524,113590.0,113580.0,1.05275599]
[1757509391535,0.17813183,113590.0,113580.0,1.22884332]
[1757509391736,0.00206,113590.0,113580.0,1.22884332]
[1757509392085,0.00524,113590.0,113580.0,1.22884332]
[1757509392292,0.00206,113590.0,113580.0,1.38141759]
[1757509392693,0.00206,113590.0,113580.0,1.38041759]